[Event "23rd Alekhine Master 2019"]
[Site "Voronezh"]
[Date "2019.06.15"]
[Round "4.7"]
[White "Meshkovs, Nikita"]
[Black "Potapov, Pavel"]
[Result "1/2-1/2"]
[ECO "A85"]
[WhiteElo "2550"]
[BlackElo "2479"]
[Annotator "ChessBase"]
[PlyCount "114"]
[EventDate "2019.06.12"]
[EventType "swiss"]
[EventCountry "RUS"]
[SourceTitle "playchess.com"]
[Source "ChessBase"]
[SourceQuality "1"]
[TimeControl "40/5400+30:1800+30"]

1. d4 {[%emt 0:00:00]} f5 {[%emt 0:00:00]} 2. c4 {[%emt 0:00:00]} Nf6 {[%emt 0:00:09]} 3. Nc3 {[%emt 0:00:00]} g6 {[%emt 0:02:44]} 4. Bg5 {[%emt 0:06:55]} Bg7 {[%emt 0:00:22]} 5. Qc2 {[%emt 0:00:11]} O-O {[%emt 0:04:20]} 6. O-O-O {[%emt 0:02:20]} c5 {[%emt 0:01:47]} 7. e3 {[%emt 0:08:27]} Na6 {[%emt 0:02:26]} 8. Nh3 {[%emt 0:06:13]} d6 {[%emt 0:06:55]} 9. Nf4 {[%emt 0:05:12]} Qa5 {[%emt 0:05:29]} 10. a3 {[%emt 0:00:55]} e5 {[%emt 0:07:31]} 11. dxe5 {[%emt 0:02:46]} dxe5 {[%emt 0:00:05]} 12. Nfd5 {[%emt 0:00:46]} Be6 {[%emt 0:03:02]} 13. Nxf6+ {[%emt 0:03:40]} Bxf6 {[%emt 0:00:08]} 14. Bxf6 {[%emt 0:00:04]} Rxf6 {[%emt 0:00:06]} 15. Be2 {[%emt 0:00:15]} Nc7 {[%emt 0:15:18]} 16. Rd6 {[%emt 0:03:45]} Ne8 {[%emt 0:01:08]} 17. Rd2 {[%emt 0:00:10]} Rd8 {[%emt 0:02:32]} 18. Rhd1 {[%emt 0:01:10]} Rxd2 {[%emt 0:00:28]} 19. Qxd2 {[%emt 0:01:53]} Rf8 {[%emt 0:00:17]} 20. Bf3 {[%emt 0:02:08]} Qa6 {[%emt 0:05:27]} 21. Qd8 {[%emt 0:07:32]} e4 {[%emt 0:04:09]} 22. Be2 {[%emt 0:00:21]} Qc6 {[%emt 0:02:52]} 23. Qa5 {[%emt 0:23:20]} Nd6 {[%emt 0:04:59]} 24. Nd5 {[%emt 0:00:14]} Nc8 {[%emt 0:04:27]} 25. Nf4 {[%emt 0:06:16]} Bf7 {[%emt 0:03:59]} 26. h4 {[%emt 0:00:15]} h5 {[%emt 0:02:44]} 27. g3 {[%emt 0:00:58]} Nb6 {[%emt 0:02:01]} 28. Qc3 {[%emt 0:00:28]} Re8 {[%emt 0:02:04]} 29. b3 {[%emt 0:04:59]} Qc7 {[%emt 0:01:37]} 30. Qf6 {[%emt 0:01:10]} Qe7 {[%emt 0:01:16]} 31. Qg5 {[%emt 0:02:15]} Qxg5 {[%emt 0:05:18]} 32. hxg5 {[%emt 0:00:02]} Kf8 {[%emt 0:00:12]} 33. Kc2 {[%emt 0:04:17]} Ke7 {[%emt 0:01:08]} 34. f3 {[%emt 0:00:48]} Rd8 {[%emt 0:01:05]} 35. Rh1 {[%emt 0:01:20]} Rh8 {[%emt 0:04:33]} 36. fxe4 {[%emt 0:00:10]} fxe4 {[%emt 0:00:04]} 37. Rh4 {[%emt 0:00:04]} Nc8 {[%emt 0:02:14]} 38. g4 {[%emt 0:01:08]} Nd6 {[%emt 0:00:30]} 39. gxh5 {[%emt 0:00:06]} gxh5 {[%emt 0:01:18]} 40. g6 {[%emt 0:00:00]} Nf5 {[%emt 0:00:00]} 41. Rxh5 {[%emt 0:02:57]} Rxh5 {[%emt 0:01:36]} 42. Bxh5 {[%emt 0:00:09]} Be8 {[%emt 0:00:51]} 43. Nd5+ {[%emt 0:02:47]} Kf8 {[%emt 0:01:12]} 44. b4 {[%emt 0:15:05]} cxb4 {[%emt 0:12:25]} 45. axb4 {[%emt 0:00:13]} Bc6 {[%emt 0:00:35]} 46. Bg4 {[%emt 0:04:06]} Bxd5 {[%emt 0:03:19]} 47. Bxf5 {[%emt 0:00:08]} Bxc4 {[%emt 0:00:03]} 48. Bxe4 {[%emt 0:05:09]} b6 {[%emt 0:00:17]} 49. Kc3 {[%emt 0:03:01]} Bb5 {[%emt 0:00:21]} 50. Bd3 {[%emt 0:05:48]} Bxd3 {[%emt 0:00:36]} 51. Kxd3 {[%emt 0:00:08]} a5 {[%emt 0:00:11]} 52. bxa5 {[%emt 0:00:26]} bxa5 {[%emt 0:00:04]} 53. Kc4 {[%emt 0:00:05]} Kg7 {[%emt 0:00:07]} 54. Kb5 {[%emt 0:00:04]} Kxg6 {[%emt 0:00:04]} 55. Kxa5 {[%emt 0:00:05]} Kf5 {[%emt 0:00:07]} 56. Kb5 {[%emt 0:00:04]} Ke4 {[%emt 0:00:05]} 57. Kc5 {[%emt 0:00:02]} Kxe3 {[%emt 0:00:04]} 1/2-1/2

[Event "23rd Alekhine Master 2019"]
[Site "Voronezh"]
[Date "2019.06.15"]
[Round "4.8"]
[White "Maiorov, Nikita"]
[Black "Kabanov, Nikolai"]
[Result "1-0"]
[ECO "D37"]
[WhiteElo "2527"]
[BlackElo "2455"]
[Annotator "ChessBase"]
[PlyCount "89"]
[EventDate "2019.06.12"]
[EventType "swiss"]
[EventCountry "RUS"]
[SourceTitle "playchess.com"]
[Source "ChessBase"]
[SourceQuality "1"]
[TimeControl "40/5400+30:1800+30"]

1. d4 {[%emt 0:08:26]} Nf6 {[%emt 0:00:40]} 2. c4 {[%emt 0:00:08]} e6 {[%emt 0:00:16]} 3. Nf3 {[%emt 0:00:19]} d5 {[%emt 0:00:14]} 4. Nc3 {[%emt 0:01:48]} Nbd7 {[%emt 0:01:49]} 5. cxd5 {[%emt 0:03:00]} exd5 {[%emt 0:00:09]} 6. Bg5 {[%emt 0:00:06]} Be7 {[%emt 0:00:54]} 7. e3 {[%emt 0:00:18]} O-O {[%emt 0:01:21]} 8. Bd3 {[%emt 0:00:22]} c6 {[%emt 0:00:31]} 9. Qc2 {[%emt 0:00:05]} Re8 {[%emt 0:00:29]} 10. O-O {[%emt 0:00:17]} Nf8 {[%emt 0:00:13]} 11. Rab1 {[%emt 0:02:01]} a5 {[%emt 0:02:48]} 12. h3 {[%emt 0:03:03]} g6 {[%emt 0:01:47]} 13. Bf4 {[%emt 0:06:47]} Ne6 {[%emt 0:00:56]} 14. Be5 {[%emt 0:03:16]} Ng7 {[%emt 0:01:13]} 15. Qb3 {[%emt 0:00:35]} Nd7 {[%emt 0:11:07]} 16. Bh2 {[%emt 0:05:28]} Nb6 {[%emt 0:04:10]} 17. Rbd1 {[%emt 0:02:24]} a4 {[%emt 0:03:05]} 18. Qc2 {[%emt 0:00:46]} Bf5 {[%emt 0:00:50]} 19. Ne5 {[%emt 0:01:26]} Bxd3 {[%emt 0:14:14]} 20. Nxd3 {[%emt 0:00:04]} Ne6 {[%emt 0:00:39]} 21. Nc5 {[%emt 0:13:12]} Bxc5 {[%emt 0:16:31]} 22. dxc5 {[%emt 0:00:04]} Nd7 {[%emt 0:04:02]} 23. Bd6 {[%emt 0:21:53]} Ndxc5 {[%emt 0:09:36]} 24. Bxc5 {[%emt 0:00:14]} Nxc5 {[%emt 0:00:04]} 25. Nxd5 {[%emt 0:00:11]} Ne6 {[%emt 0:02:35]} 26. Nc3 {[%emt 0:00:12]} Qa5 {[%emt 0:00:28]} 27. Rd7 {[%emt 0:03:39]} Nc5 {[%emt 0:00:58]} 28. Rd4 {[%emt 0:01:14]} Qb6 {[%emt 0:08:24]} 29. Rb1 {[%emt 0:01:43]} Red8 {[%emt 0:06:29]} 30. Rbd1 {[%emt 0:06:37]} Rxd4 {[%emt 0:00:55]} 31. exd4 {[%emt 0:05:09]} Ne6 {[%emt 0:00:11]} 32. d5 {[%emt 0:00:38]} cxd5 {[%emt 0:00:15]} 33. Nxd5 {[%emt 0:00:09]} Qc5 {[%emt 0:00:58]} 34. Qe4 {[%emt 0:01:14]} a3 {[%emt 0:00:29]} 35. b4 {[%emt 0:03:30]} Qf8 {[%emt 0:02:35]} 36. Nf6+ {[%emt 0:00:28]} Kh8 {[%emt 0:00:08]} 37. Rd7 {[%emt 0:01:35]} Qg7 {[%emt 0:01:59]} 38. Qe5 {[%emt 0:01:04]} b5 {[%emt 0:00:37]} 39. Rb7 {[%emt 0:01:30]} Rd8 {[%emt 0:00:19]} 40. Rxb5 {[%emt 0:00:00]} Qh6 {[%emt 0:00:00]} 41. Ng4+ {[%emt 0:03:24]} Qg7 {[%emt 0:04:30]} 42. Nf6 {[%emt 0:08:57]} Qh6 {[%emt 0:03:46]} 43. Rb7 {[%emt 0:01:59]} Qc1+ {[%emt 0:01:08]} 44. Kh2 {[%emt 0:00:06]} Kg7 {[%emt 0:00:36]} 45. Nd5+ {[%emt 0:01:43]} 1-0

[Event "23rd Alekhine Master 2019"]
[Site "Voronezh"]
[Date "2019.06.15"]
[Round "4.9"]
[White "Moiseenko, Vadim"]
[Black "Ruiz Castillo, Joshua Daniel"]
[Result "0-1"]
[ECO "C01"]
[WhiteElo "2525"]
[BlackElo "2472"]
[Annotator "ChessBase"]
[PlyCount "64"]
[EventDate "2019.06.12"]
[EventType "swiss"]
[EventCountry "RUS"]
[SourceTitle "playchess.com"]
[Source "ChessBase"]
[SourceQuality "1"]
[TimeControl "40/5400+30:1800+30"]

1. e4 {[%emt 0:00:56]} e6 {[%emt 0:00:00]} 2. d4 {[%emt 0:00:14]} d5 {[%emt 0:00:00]} 3. exd5 {[%emt 0:00:19]} exd5 {[%emt 0:00:00]} 4. Nf3 {[%emt 0:00:04]} Nc6 {[%emt 0:00:00]} 5. Nc3 {[%emt 0:01:14]} Bb4 {[%emt 0:00:15]} 6. a3 {[%emt 0:03:01]} Bxc3+ {[%emt 0:00:08]} 7. bxc3 {[%emt 0:00:04]} Nge7 {[%emt 0:00:10]} 8. Bd3 {[%emt 0:01:10]} O-O {[%emt 0:00:32]} 9. O-O {[%emt 0:00:08]} Bf5 {[%emt 0:00:25]} 10. Re1 {[%emt 0:02:24]} Re8 {[%emt 0:01:22]} 11. Bf4 {[%emt 0:04:05]} Qd7 {[%emt 0:06:12]} 12. Rb1 {[%emt 0:03:03]} Bxd3 {[%emt 0:03:01]} 13. cxd3 {[%emt 0:02:46]} b6 {[%emt 0:00:34]} 14. Qd2 {[%emt 0:02:37]} f6 {[%emt 0:02:31]} 15. h3 {[%emt 0:01:17]} Ng6 {[%emt 0:00:44]} 16. Bh2 {[%emt 0:00:48]} Na5 {[%emt 0:01:10]} 17. Rec1 {[%emt 0:05:36]} Rac8 {[%emt 0:01:28]} 18. c4 {[%emt 0:04:11]} dxc4 {[%emt 0:02:24]} 19. dxc4 {[%emt 0:00:08]} c5 {[%emt 0:00:02]} 20. Bg3 {[%emt 0:15:18]} Qa4 {[%emt 0:09:36]} 21. Qa2 {[%emt 0:09:05]} Kh8 {[%emt 0:00:38]} 22. Bd6 {[%emt 0:04:12]} cxd4 {[%emt 0:00:22]} 23. c5 {[%emt 0:00:03]} Nb7 24. Qf7 {[%emt 0:05:52]} Nxc5 {[%emt 0:10:48]} 25. Bxc5 {[%emt 0:00:05]} Rxc5 {[%emt 0:00:14]} 26. Rxc5 {[%emt 0:01:31]} bxc5 {[%emt 0:00:07]} 27. Rb7 {[%emt 0:00:17]} Rg8 {[%emt 0:00:11]} 28. Rxa7 {[%emt 0:00:18]} Qd1+ {[%emt 0:00:18]} 29. Kh2 {[%emt 0:00:05]} Qe2 {[%emt 0:00:57]} 30. Kg1 {[%emt 0:02:53]} c4 {[%emt 0:07:29]} 31. Rc7 {[%emt 0:10:16]} Ne5 {[%emt 0:01:42]} 32. Qd5 {[%emt 0:01:02]} d3 {[%emt 0:00:59]} 0-1

[Event "23rd Alekhine Master 2019"]
[Site "Voronezh"]
[Date "2019.06.15"]
[Round "4.10"]
[White "Visakh N R"]
[Black "Yeletsky, Ivan"]
[Result "1/2-1/2"]
[ECO "B53"]
[WhiteElo "2518"]
[BlackElo "2438"]
[Annotator "ChessBase"]
[PlyCount "82"]
[EventDate "2019.06.12"]
[EventType "swiss"]
[EventCountry "RUS"]
[SourceTitle "playchess.com"]
[Source "ChessBase"]
[SourceQuality "1"]
[TimeControl "40/5400+30:1800+30"]

1. e4 {[%emt 0:00:00]} c5 {[%emt 0:00:00]} 2. Nf3 {[%emt 0:00:00]} d6 {[%emt 0:00:06]} 3. d4 {[%emt 0:00:00]} cxd4 {[%emt 0:00:10]} 4. Qxd4 {[%emt 0:00:00]} Nc6 {[%emt 0:01:19]} 5. Bb5 {[%emt 0:00:02]} Bd7 {[%emt 0:00:11]} 6. Bxc6 {[%emt 0:00:06]} Bxc6 {[%emt 0:00:12]} 7. c4 {[%emt 0:00:08]} Nf6 {[%emt 0:01:00]} 8. Nc3 {[%emt 0:00:07]} g6 {[%emt 0:00:40]} 9. O-O {[%emt 0:00:18]} Bg7 {[%emt 0:00:32]} 10. Qd3 {[%emt 0:01:08]} O-O {[%emt 0:01:54]} 11. Nd4 {[%emt 0:00:04]} Rc8 {[%emt 0:15:01]} 12. b3 {[%emt 0:00:09]} Nxe4 {[%emt 0:08:28]} 13. Nxe4 {[%emt 0:00:20]} d5 {[%emt 0:00:11]} 14. Nxc6 {[%emt 0:00:06]} Rxc6 {[%emt 0:00:10]} 15. Rb1 {[%emt 0:00:04]} dxe4 {[%emt 0:00:17]} 16. Qxe4 {[%emt 0:00:02]} Qd7 {[%emt 0:05:09]} 17. Bg5 {[%emt 0:06:29]} Re8 {[%emt 0:05:02]} 18. Rbd1 {[%emt 0:01:18]} Rd6 {[%emt 0:00:55]} 19. Rxd6 {[%emt 0:00:15]} exd6 {[%emt 0:00:12]} 20. Qd3 {[%emt 0:00:37]} d5 {[%emt 0:02:42]} 21. Qxd5 {[%emt 0:38:28]} Qxd5 {[%emt 0:00:09]} 22. cxd5 {[%emt 0:00:01]} Re5 {[%emt 0:00:09]} 23. Be3 {[%emt 0:00:04]} Rxd5 {[%emt 0:00:07]} 24. Rc1 {[%emt 0:00:01]} Bb2 {[%emt 0:01:10]} 25. Rc8+ {[%emt 0:00:20]} Kg7 {[%emt 0:00:10]} 26. Kf1 {[%emt 0:00:04]} Bd4 {[%emt 0:04:05]} 27. Bxd4+ {[%emt 0:00:06]} Rxd4 {[%emt 0:00:05]} 28. Rc7 {[%emt 0:00:03]} Rd2 {[%emt 0:01:45]} 29. a3 {[%emt 0:00:20]} Ra2 {[%emt 0:00:24]} 30. a4 {[%emt 0:00:13]} b6 {[%emt 0:00:09]} 31. Rxa7 {[%emt 0:01:11]} Rb2 {[%emt 0:00:16]} 32. Rb7 {[%emt 0:00:27]} Rxb3 {[%emt 0:00:23]} 33. a5 {[%emt 0:00:05]} b5 {[%emt 0:00:14]} 34. a6 {[%emt 0:05:42]} Ra3 {[%emt 0:00:54]} 35. a7 {[%emt 0:00:06]} Ra2 {[%emt 0:01:19]} 36. Ke1 {[%emt 0:03:10]} b4 {[%emt 0:00:12]} 37. Kd1 {[%emt 0:00:59]} b3 {[%emt 0:00:14]} 38. Kc1 {[%emt 0:03:32]} g5 {[%emt 0:00:49]} 39. Kd1 {[%emt 0:04:05]} Ra1+ {[%emt 0:00:24]} 40. Ke2 {[%emt 0:00:00]} b2 {[%emt 0:00:00]} 41. Rxb2 {[%emt 0:00:10]} Rxa7 {[%emt 0:00:16]} 1/2-1/2

[Event "23rd Alekhine Master 2019"]
[Site "Voronezh"]
[Date "2019.06.15"]
[Round "4.11"]
[White "Krapivin, Alexander"]
[Black "Savchenko, Boris"]
[Result "1/2-1/2"]
[ECO "B26"]
[WhiteElo "2431"]
[BlackElo "2567"]
[Annotator "ChessBase"]
[PlyCount "93"]
[EventDate "2019.06.12"]
[EventType "swiss"]
[EventCountry "RUS"]
[SourceTitle "playchess.com"]
[Source "ChessBase"]
[SourceQuality "1"]
[TimeControl "40/5400+30:1800+30"]

1. e4 {[%emt 0:02:15]} c5 {[%emt 0:02:49]} 2. Nc3 {[%emt 0:00:29]} Nc6 {[%emt 0:00:43]} 3. g3 {[%emt 0:00:04]} g6 {[%emt 0:00:07]} 4. Bg2 {[%emt 0:00:01]} Bg7 {[%emt 0:00:07]} 5. d3 {[%emt 0:00:02]} d6 {[%emt 0:01:04]} 6. Be3 {[%emt 0:02:05]} Nf6 {[%emt 0:02:23]} 7. h3 {[%emt 0:13:17]} Rb8 {[%emt 0:00:48]} 8. Qd2 {[%emt 0:00:52]} O-O {[%emt 0:27:54]} 9. Nge2 {[%emt 0:00:46]} b5 {[%emt 0:01:10]} 10. a3 {[%emt 0:10:02]} Nd7 {[%emt 0:15:05]} 11. O-O {[%emt 0:17:15]} Nd4 {[%emt 0:01:42]} 12. Nd1 {[%emt 0:02:22]} f5 {[%emt 0:03:26]} 13. f4 {[%emt 0:19:24]} Bb7 {[%emt 0:00:44]} 14. Nc1 {[%emt 0:03:27]} e5 {[%emt 0:02:36]} 15. c3 {[%emt 0:00:53]} Ne6 {[%emt 0:00:32]} 16. Ne2 {[%emt 0:00:20]} fxe4 {[%emt 0:09:40]} 17. dxe4 {[%emt 0:00:25]} Nb6 {[%emt 0:00:25]} 18. b3 {[%emt 0:04:50]} c4 {[%emt 0:07:49]} 19. b4 {[%emt 0:00:48]} Qc7 {[%emt 0:00:59]} 20. Nf2 {[%emt 0:04:03]} exf4 {[%emt 0:00:46]} 21. gxf4 {[%emt 0:01:11]} Rbd8 {[%emt 0:02:39]} 22. Ng4 {[%emt 0:03:31]} d5 {[%emt 0:08:45]} 23. e5 {[%emt 0:00:13]} a6 {[%emt 0:00:07]} 24. Nd4 {[%emt 0:01:04]} Bc8 {[%emt 0:01:14]} 25. f5 {[%emt 0:05:24]} gxf5 {[%emt 0:00:08]} 26. Nxf5 {[%emt 0:00:20]} d4 {[%emt 0:00:59]} 27. Nxd4 {[%emt 0:01:07]} Nxd4 {[%emt 0:01:02]} 28. Bxd4 {[%emt 0:00:11]} Bxg4 {[%emt 0:00:41]} 29. hxg4 {[%emt 0:00:18]} Bxe5 {[%emt 0:00:18]} 30. Qg5+ {[%emt 0:03:02]} Bg7 {[%emt 0:00:08]} 31. Rxf8+ {[%emt 0:00:22]} Rxf8 {[%emt 0:00:06]} 32. Re1 {[%emt 0:00:46]} Nc8 {[%emt 0:01:03]} 33. Re6 {[%emt 0:02:57]} Kh8 {[%emt 0:02:11]} 34. Bxg7+ {[%emt 0:00:26]} Qxg7 {[%emt 0:00:05]} 35. Qxg7+ {[%emt 0:00:07]} Kxg7 {[%emt 0:00:03]} 36. Rxa6 {[%emt 0:00:14]} Rd8 {[%emt 0:00:05]} 37. a4 {[%emt 0:01:26]} bxa4 {[%emt 0:00:07]} 38. Rxa4 {[%emt 0:01:36]} Rd3 {[%emt 0:00:38]} 39. Ra3 {[%emt 0:00:41]} Nd6 {[%emt 0:07:46]} 40. Bc6 {[%emt 0:00:00]} Kf6 {[%emt 0:00:00]} 41. b5 {[%emt 0:04:01]} Kg5 {[%emt 0:17:43]} 42. b6 {[%emt 0:00:27]} Kxg4 {[%emt 0:01:00]} 43. b7 {[%emt 0:03:03]} Rd1+ {[%emt 0:02:35]} 44. Kf2 {[%emt 0:00:11]} Rb1 {[%emt 0:00:14]} 45. Ra4 {[%emt 0:10:38]} Nxb7 {[%emt 0:00:44]} 46. Rxc4+ {[%emt 0:00:49]} Kg5 {[%emt 0:00:06]} 47. Bxb7 {[%emt 0:03:51]} 1/2-1/2

[Event "23rd Alekhine Master 2019"]
[Site "Voronezh"]
[Date "2019.06.15"]
[Round "4.13"]
[White "Yeritsyan, Aram"]
[Black "Fedorov, Alexei"]
[Result "1/2-1/2"]
[ECO "B30"]
[WhiteElo "2352"]
[BlackElo "2553"]
[Annotator "ChessBase"]
[PlyCount "90"]
[EventDate "2019.06.12"]
[EventType "swiss"]
[EventCountry "RUS"]
[SourceTitle "playchess.com"]
[Source "ChessBase"]
[SourceQuality "1"]
[TimeControl "40/5400+30:1800+30"]

1. e4 {[%emt 0:00:00]} c5 {[%emt 0:00:00]} 2. Nf3 {[%emt 0:00:00]} Nc6 {[%emt 0:00:00]} 3. Nc3 {[%emt 0:00:23]} e5 {[%emt 0:00:25]} 4. Bc4 {[%emt 0:00:22]} Be7 {[%emt 0:00:32]} 5. d3 {[%emt 0:00:19]} d6 {[%emt 0:02:18]} 6. Nd2 {[%emt 0:00:30]} Nf6 {[%emt 0:00:34]} 7. Nf1 {[%emt 0:00:18]} O-O {[%emt 0:04:00]} 8. Ne3 {[%emt 0:00:39]} Nd7 {[%emt 0:00:19]} 9. Ncd5 {[%emt 0:05:57]} Nb6 {[%emt 0:02:25]} 10. Nxb6 {[%emt 0:03:24]} axb6 {[%emt 0:00:36]} 11. O-O {[%emt 0:05:35]} Bg5 {[%emt 0:02:05]} 12. c3 {[%emt 0:07:16]} Kh8 {[%emt 0:06:46]} 13. Nd5 {[%emt 0:14:02]} Bxc1 {[%emt 0:01:46]} 14. Qxc1 {[%emt 0:01:42]} Be6 {[%emt 0:02:17]} 15. a4 {[%emt 0:05:52]} Ne7 {[%emt 0:01:22]} 16. Nxe7 {[%emt 0:04:39]} Qxe7 {[%emt 0:04:01]} 17. f4 {[%emt 0:03:09]} Bxc4 {[%emt 0:09:24]} 18. dxc4 {[%emt 0:00:06]} f5 {[%emt 0:00:30]} 19. Qc2 {[%emt 0:03:12]} Rae8 {[%emt 0:14:19]} 20. fxe5 {[%emt 0:09:28]} f4 {[%emt 0:00:47]} 21. exd6 {[%emt 0:01:39]} Qxd6 {[%emt 0:00:29]} 22. Rad1 {[%emt 0:01:15]} Qg6 {[%emt 0:06:32]} 23. Qd2 {[%emt 0:05:19]} f3 {[%emt 0:08:08]} 24. Rde1 {[%emt 0:02:18]} h6 {[%emt 0:05:43]} 25. e5 {[%emt 0:10:00]} Rf5 {[%emt 0:03:45]} 26. Rf2 {[%emt 0:01:40]} fxg2 {[%emt 0:06:05]} 27. Rxf5 {[%emt 0:00:27]} Qxf5 {[%emt 0:00:15]} 28. Qd5 {[%emt 0:07:52]} Rf8 {[%emt 0:10:27]} 29. Qxg2 {[%emt 0:00:05]} Qe6 {[%emt 0:00:47]} 30. Qxb7 {[%emt 0:01:51]} Qxc4 {[%emt 0:00:40]} 31. e6 {[%emt 0:02:03]} Qxa4 {[%emt 0:00:31]} 32. e7 {[%emt 0:01:08]} Re8 {[%emt 0:02:13]} 33. Qd5 {[%emt 0:02:24]} Qf4 {[%emt 0:02:35]} 34. Rf1 {[%emt 0:01:14]} Qe3+ {[%emt 0:00:16]} 35. Kh1 {[%emt 0:00:35]} Qxe7 {[%emt 0:00:09]} 36. Qf3 {[%emt 0:00:44]} Qe2 {[%emt 0:00:58]} 37. b4 {[%emt 0:00:32]} cxb4 {[%emt 0:00:41]} 38. cxb4 {[%emt 0:00:22]} Qxf3+ {[%emt 0:00:30]} 39. Rxf3 {[%emt 0:00:01]} Re4 {[%emt 0:00:12]} 40. Rb3 {[%emt 0:00:00]} b5 {[%emt 0:00:00]} 41. Kg2 {[%emt 0:02:55]} Kh7 {[%emt 0:00:50]} 42. Kf3 {[%emt 0:00:41]} Rc4 {[%emt 0:00:29]} 43. Kg3 {[%emt 0:00:36]} h5 {[%emt 0:04:33]} 44. Kf3 {[%emt 0:00:59]} Kh6 {[%emt 0:00:38]} 45. Kg3 {[%emt 0:00:08]} g5 {[%emt 0:01:45]} 1/2-1/2

[Event "23rd Alekhine Master 2019"]
[Site "Voronezh"]
[Date "2019.06.15"]
[Round "4.14"]
[White "Puranik, Abhimanyu"]
[Black "Smirnov, Timofey"]
[Result "1-0"]
[ECO "C91"]
[WhiteElo "2548"]
[BlackElo "2335"]
[Annotator "ChessBase"]
[PlyCount "122"]
[EventDate "2019.06.12"]
[EventType "swiss"]
[EventCountry "RUS"]
[SourceTitle "playchess.com"]
[Source "ChessBase"]
[SourceQuality "1"]
[TimeControl "40/5400+30:1800+30"]

1. e4 {[%emt 0:00:00]} e5 {[%emt 0:00:00]} 2. Nf3 {[%emt 0:00:00]} Nc6 {[%emt 0:00:00]} 3. Bb5 {[%emt 0:00:00]} a6 {[%emt 0:00:05]} 4. Ba4 {[%emt 0:00:00]} Nf6 {[%emt 0:00:08]} 5. O-O {[%emt 0:00:07]} Be7 {[%emt 0:00:19]} 6. Re1 {[%emt 0:00:30]} b5 {[%emt 0:00:16]} 7. Bb3 {[%emt 0:00:04]} d6 {[%emt 0:00:06]} 8. c3 {[%emt 0:00:03]} O-O {[%emt 0:00:08]} 9. d4 {[%emt 0:00:25]} Bg4 {[%emt 0:01:38]} 10. d5 {[%emt 0:00:24]} Na5 {[%emt 0:00:31]} 11. Bc2 {[%emt 0:00:06]} c6 {[%emt 0:00:21]} 12. h3 {[%emt 0:00:19]} Bd7 {[%emt 0:02:00]} 13. Nxe5 {[%emt 0:01:01]} dxe5 {[%emt 0:01:11]} 14. d6 {[%emt 0:00:04]} Nb7 {[%emt 0:01:30]} 15. dxe7 {[%emt 0:00:09]} Qxe7 {[%emt 0:00:03]} 16. Qf3 {[%emt 0:06:49]} Be6 {[%emt 0:09:05]} 17. Bg5 {[%emt 0:04:36]} h6 {[%emt 0:01:23]} 18. Be3 {[%emt 0:03:04]} Nd7 {[%emt 0:00:58]} 19. Nd2 {[%emt 0:01:16]} Qf6 {[%emt 0:02:54]} 20. Qg3 {[%emt 0:01:50]} Qg6 {[%emt 0:02:19]} 21. Qxg6 {[%emt 0:01:06]} fxg6 {[%emt 0:00:06]} 22. a4 {[%emt 0:04:17]} g5 {[%emt 0:01:09]} 23. Ra3 {[%emt 0:03:47]} c5 {[%emt 0:03:50]} 24. axb5 {[%emt 0:04:57]} axb5 {[%emt 0:00:04]} 25. Rea1 {[%emt 0:00:10]} Rxa3 {[%emt 0:01:03]} 26. Rxa3 {[%emt 0:00:01]} Kf7 {[%emt 0:03:23]} 27. Ra7 {[%emt 0:06:39]} Rb8 {[%emt 0:01:41]} 28. Kf1 {[%emt 0:18:09]} Ke8 {[%emt 0:04:12]} 29. Ke2 {[%emt 0:04:18]} Kd8 {[%emt 0:04:23]} 30. b4 {[%emt 0:02:46]} cxb4 {[%emt 0:01:55]} 31. cxb4 {[%emt 0:00:03]} Nd6 {[%emt 0:00:38]} 32. Bd3 {[%emt 0:05:09]} Rc8 {[%emt 0:05:44]} 33. Ra5 {[%emt 0:02:43]} Rb8 {[%emt 0:01:05]} 34. Ra6 {[%emt 0:02:57]} Ke7 {[%emt 0:01:06]} 35. Ra7 {[%emt 0:01:13]} Kf6 {[%emt 0:00:55]} 36. Ra6 {[%emt 0:11:39]} Ke7 {[%emt 0:00:33]} 37. Nb1 {[%emt 0:03:26]} Rc8 {[%emt 0:03:48]} 38. Ra7 {[%emt 0:01:53]} Kd8 {[%emt 0:08:50]} 39. Ra5 {[%emt 0:04:24]} Rc6 {[%emt 0:11:20]} 40. Nd2 {[%emt 0:00:00]} Bc4 {[%emt 0:00:00]} 41. Nxc4 {[%emt 0:03:44]} bxc4 {[%emt 0:04:58]} 42. Bc2 {[%emt 0:00:03]} Rc7 {[%emt 0:00:34]} 43. Kd2 {[%emt 0:10:24]} c3+ {[%emt 0:03:00]} 44. Kd3 {[%emt 0:00:51]} Nc4 {[%emt 0:00:07]} 45. Ra8+ {[%emt 0:06:08]} Ke7 {[%emt 0:00:08]} 46. Bc1 {[%emt 0:10:16]} Ndb6 {[%emt 0:02:35]} 47. Ra6 {[%emt 0:00:37]} Rc6 {[%emt 0:04:19]} 48. Bb3 {[%emt 0:01:29]} Nd2 {[%emt 0:03:20]} 49. Ra7+ {[%emt 0:03:53]} Kf6 {[%emt 0:00:40]} 50. Bc2 {[%emt 0:03:56]} Ndc4 {[%emt 0:02:32]} 51. Bb3 {[%emt 0:01:08]} Nd2 {[%emt 0:01:15]} 52. Bd5 {[%emt 0:00:34]} Nxd5 {[%emt 0:12:42]} 53. exd5 {[%emt 0:00:02]} Rc8 {[%emt 0:00:01]} 54. Ra6+ {[%emt 0:01:13]} Kf7 {[%emt 0:01:23]} 55. Rc6 {[%emt 0:00:13]} Rd8 {[%emt 0:00:41]} 56. Rxc3 {[%emt 0:01:14]} Rxd5+ {[%emt 0:00:23]} 57. Ke3 {[%emt 0:00:15]} Nf1+ {[%emt 0:00:19]} 58. Ke2 {[%emt 0:00:35]} Nh2 {[%emt 0:00:02]} 59. Rb3 {[%emt 0:00:41]} Rb5 {[%emt 0:00:29]} 60. f3 {[%emt 0:00:24]} h5 {[%emt 0:00:48]} 61. Bxg5 {[%emt 0:00:29]} Rc5 1-0